Cogmind - Beta 16 @@@ ROGUE MODE // 2025.11.28 @ 14:50:25 Player: The Overplayer Result: Destroyed by S-27 Virus with Autogun Performance ------------- Evolutions (4) 2000 Regions Visited (14) 2800 Robots Destroyed (40) 200 Value Destroyed (891) 891 Prototype IDs (28) 560 Alien Tech Used (0) 0 Bonus (1000) 1000 TOTAL SCORE: 7451 Bonus ------- Entered Garrisons 200 Used RIF Installer 500 Aligned with FarCom 300 Cogmind --------- Core Integrity 0/850 Matter 295/300 Energy 82/100 System Corruption 0% Temperature Cool (1) Movement Treading (160) Location -5/Proximity Caves Parts ------- > --- POWER (1) -------- (None) > --- PROPULSION (5) --- Medium Treads > --- UTILITY (7) ------ Advanced Signal Interpreter Improved Melee Analysis Suite > --- WEAPON (2) ------- Power Maul > --- INVENTORY (5) ---- Makeshift Power Source Cold Fusion Reactor Actuator Array Molecular Deconstructor Peak State ------------ > --- POWER ------------ Cold Fusion Reactor > --- PROPULSION ------- Xenon Bombardment Thruster Xenon Bombardment Thruster Xenon Bombardment Thruster Xenon Bombardment Thruster Cooled Cesium-ion Thruster > --- UTILITY ---------- Machine Analyzer Advanced Signal Interpreter Improved Melee Analysis Suite Microactuators Improved Reaction Control System Hacking Suite Hacking Suite > --- WEAPON ----------- Power Maul Power Maul > --- INVENTORY -------- Cold Fusion Reactor Xenon Bombardment Thruster Actuator Array Molecular Deconstructor [Rating: 66] Favorites ----------- Power Light Ion Engine Engine Light Ion Engine Power Core Light Nuclear Core Reactor Cold Fusion Reactor Propulsion Improved Cesium-ion Thruster Treads Light Treads Hover Unit Hover Unit Flight Unit Improved Cesium-ion Thruster Utility Hacking Suite Device Actuator Array Storage Small Storage Unit Processor Machine Analyzer Hackware Hacking Suite Weapon Power Maul Energy Gun Field Laser Ballistic Gun Assault Rifle Launcher Rocket Launcher Special Weapon Molecular Deconstructor Impact Weapon Power Maul Slashing Weapon Mining Claw Build | -11 -10 -10 -10 -9 -8 -7 -7 -7 -6 -6 -6 -6 -6 -5 ------- Run | Yrd Mat Min Exi Min Mat Fac Low Low Fac Gar Fac Low Zio Pro Slots Evolved 8 | . . . . . 4 2 . . 2 . . . . . Power . | . . . . . . . . . . . . . . . Propulsion 3 | . . . . . 2 . . . 1 . . . . . Utility 5 | . . . . . 2 2 . . 1 . . . . . Weapon . | . . . . . . . . . . . . . . . Parts Attached 56 | 6 9 . . . 14 8 2 1 13 2 . . . 1 Power 10 | 1 2 . . . 1 1 . 1 4 . . . . . Engine 5 | 1 2 . . . . 1 . 1 . . . . . . Core 3 | . . . . . 1 . . . 2 . . . . . Reactor 2 | . . . . . . . . . 2 . . . . . Propulsion 20 | 2 2 . . . 6 1 1 . 5 2 . . . 1 Treads 3 | 2 . . . . . . . . . . . . . 1 Leg . | . . . . . . . . . . . . . . . Wheel . | . . . . . . . . . . . . . . . Hover 3 | . 2 . . . 1 . . . . . . . . . Flight 14 | . . . . . 5 1 1 . 5 2 . . . . Utility 16 | 1 2 . . . 5 4 . . 4 . . . . . Device 5 | . . . . . 2 1 . . 2 . . . . . Storage 1 | 1 . . . . . . . . . . . . . . Processor 6 | . 1 . . . . 3 . . 2 . . . . . Hackware 4 | . 1 . . . 3 . . . . . . . . . Protection . | . . . . . . . . . . . . . . . Artifact . | . . . . . . . . . . . . . . . Weapon 10 | 2 3 . . . 2 2 1 . . . . . . . Energy Gun 2 | . . . . . 2 . . . . . . . . . Energy Cannon . | . . . . . . . . . . . . . . . Ballistic Gun 3 | 2 1 . . . . . . . . . . . . . Ballistic Cannon . | . . . . . . . . . . . . . . . Launcher 1 | . 1 . . . . . . . . . . . . . Special Weapon 1 | . . . . . . . 1 . . . . . . . Impact Weapon 2 | . . . . . . 2 . . . . . . . . Slashing Weapon 1 | . 1 . . . . . . . . . . . . . Piercing Weapon . | . . . . . . . . . . . . . . . Special Melee Weapon . | . . . . . . . . . . . . . . . Unidentified Prototypes 5 | . . . . . 1 1 1 . 2 . . . . . Parts Lost 21 | . 2 . . . 1 1 1 2 . 13 . . . 1 Power 3 | . 1 . . . . . 1 . . 1 . . . . Propulsion 9 | . . . . . . . . 2 . 7 . . . . Utility 7 | . . . . . 1 1 . . . 4 . . . 1 Weapon 2 | . 1 . . . . . . . . 1 . . . . Highest Loss Streak 13 | . 2 . . . 1 1 1 2 . 13 . . . 1 To Critical Strikes . | . . . . . . . . . . . . . . . Average Backups 4 | 1 6 7 7 7 5 3 3 3 3 3 3 3 3 3 Power . | . 1 1 . . . . . . . 1 1 1 1 1 Propulsion . | . . . . . . . . . . . . . . . Utility 1 | . 2 3 3 3 . 1 1 1 . 1 1 1 1 1 Weapon 1 | . 2 3 3 3 2 1 1 2 1 1 1 1 1 1 Tool/Special . | . . . . . . . . . . . . . . . Unused Backups 17 | . 4 2 4 . 2 1 1 . 1 . . . . 2 Power 5 | . 1 . 1 . . . . . 1 . . . . 2 Propulsion . | . . . . . . . . . . . . . . . Utility 4 | . . 2 2 . . . . . . . . . . . Weapon 7 | . 3 . 1 . 2 . 1 . . . . . . . Tool/Special 1 | . . . . . . 1 . . . . . . . . Average Slot Usage (%) 82 | . 96 85 85 85 82 95 96 93 95 63 26 26 26 26 Engine 6 | . 12 14 14 14 3 2 4 1 . . . . . . Core 1 | . . . . . 5 4 . . . . . . . . Treads 3 | . 20 . . . . . . . . . . . . . Hover 7 | . 8 28 28 28 11 . . . . . . . . . Flight 13 | . . . . . 17 30 30 29 31 17 . . . . Device 4 | . . . . . 9 7 7 7 11 5 . . . . Storage 5 | . 14 14 14 14 5 . . . . . . . . . Processor 12 | . 9 . . . . 13 23 23 20 20 20 20 20 20 Hackware 11 | . 4 14 14 14 20 20 15 15 13 9 . . . . Ballistic Gun 3 | . 18 . . . . . . . . . . . . . Impact Weapon 6 | . . . . . . 14 14 15 12 7 6 6 6 6 Slashing Weapon 4 | . 8 14 14 14 2 . . . . . . . . . Peak Build Rating 66 | 6 11 9 11 11 56 54 58 53 66 66 18 18 18 20 Average Rating 29 | 5 7 9 10 11 36 50 50 49 61 37 18 18 18 18 On Entrance 25 | . 6 9 9 11 11 56 50 49 39 66 15 18 18 18 Avg Prop Armor Cover (%) 7 | . . . . . . . 7 7 . . . . . . Naked Turns . | . . . . . . . . . . . . . . . Heaviest Build 25 | 14 14 10 10 10 15 16 16 21 25 22 3 3 3 3 Greatest Support 40 | 40 40 12 12 12 24 24 23 23 30 33 3 3 3 28 Greatest Overweight (x) 3 | . . . . . 1 . 3 . . . . . . . Average Overweight (x) . | . . . . . . . . . . . . . . . Largest Inventory Capacity 8 | 8 8 8 8 8 8 5 5 5 5 5 5 5 5 5 Average Capacity 6 | 6 8 8 8 8 6 5 5 5 5 5 5 5 5 5 Most Carried 8 | 2 8 8 8 8 8 5 5 5 5 5 4 4 4 5 Average Carried 5 | 1 6 7 7 8 6 4 4 5 4 4 4 4 4 4 Final Capacity 8 | 8 8 8 8 8 5 5 5 5 5 5 5 5 5 5 Final Carried 8 | 2 8 8 8 8 5 4 5 5 5 5 4 4 4 5 Class Distribution -------------------- 41% | Hacker-Sprinter 32% | Mutant 24% | Scavenger-Mutant Dominant Class ---------------- Mutant | -10/Materials Scavenger-Mutant | -10/Mines Scavenger-Mutant | -10/Exiles Scavenger-Mutant | -9/Mines Hacker-Sprinter | -8/Materials Hacker-Sprinter | -7/Factory Hacker-Sprinter | -7/Lower Caves Hacker-Sprinter | -7/Lower Caves Hacker-Sprinter | -6/Factory Hacker-Mutant | -6/Garrison Mutant | -6/Factory Mutant | -6/Lower Caves Mutant | -6/Zion Mutant | -5/Proximity Caves Resources | -11 -10 -10 -10 -9 -8 -7 -7 -7 -6 -6 -6 -6 -6 -5 ----------- Run | Yrd Mat Min Exi Min Mat Fac Low Low Fac Gar Fac Low Zio Pro Matter Collected 1041 | 302 255 . . . 129 87 82 16 160 . . . . 10 Remotely . | . . . . . . . . . . . . . . . Salvage Created 1722 | 52 338 61 . . 186 403 204 268 192 18 . . . . Parts 60 | 1 24 3 . . 8 7 1 8 7 1 . . . . Haulers Intercepted 4 | . 1 . . . . 2 . . 1 . . . . . Recyclers Shooed 2 | 1 . . . . . 1 . . . . . . . . Parts Field Recycled . | . . . . . . . . . . . . . . . Retrieved Matter . | . . . . . . . . . . . . . . . Parts Self-Destructed . | . . . . . . . . . . . . . . . Prevented 1 | . . . . . . . . 1 . . . . . . Parts Restored . | . . . . . . . . . . . . . . . Kills | -11 -10 -10 -10 -9 -8 -7 -7 -7 -6 -6 -6 -6 -6 -5 ------- Run | Yrd Mat Min Exi Min Mat Fac Low Low Fac Gar Fac Low Zio Pro Combat Hostiles Destroyed 20 | . 7 . . . 1 3 3 2 3 1 . . . . Melee 10 | . 2 . . . . 2 2 1 2 1 . . . . Guns 6 | . 5 . . . 1 . . . . . . . . . Classes Destroyed 12 | 1 8 . . . 1 1 . 1 . . . . . . Worker 1 | . 1 . . . . . . . . . . . . . Builder 2 | . 1 . . . . 1 . . . . . . . . Tunneler 1 | . 1 . . . . . . . . . . . . . Hauler 4 | . 1 . . . . 2 . . 1 . . . . . Recycler 6 | 1 . 1 . . 1 3 . . . . . . . . Operator 3 | . 2 . . . . 1 . . . . . . . . Watcher 3 | . 1 . . . 1 . . . 1 . . . . . Swarmer 10 | . 3 . . . . . 3 . 3 1 . . . . Grunt 6 | . 4 . . . . 1 . 1 . . . . . . Hunter 1 | . . . . . 1 . . . . . . . . . Programmer 2 | . . . . . . 2 . . . . . . . . Mutant 1 | . . . . . . . . 1 . . . . . . Best Kill Streak 8 | 1 4 1 . . 1 8 3 1 3 1 . . . . Combat Bots Only 3 | . 3 . . . 1 1 3 1 3 1 . . . . Max Kills in Single Turn 1 | 1 1 1 . . 1 1 1 1 1 1 . . . . Gunslinging . | . . . . . . . . . . . . . . . Exploded . | . . . . . . . . . . . . . . . Melee 1 | . 1 . . . . 1 1 1 1 1 . . . . Uniques/NPCs Destroyed . | . . . . . . . . . . . . . . . Combat | -11 -10 -10 -10 -9 -8 -7 -7 -7 -6 -6 -6 -6 -6 -5 -------- Run | Yrd Mat Min Exi Min Mat Fac Low Low Fac Gar Fac Low Zio Pro Hostile Shots Fired 410 | . 49 . . . 40 54 13 17 46 130 36 . 12 13 Missed 178 | . 15 . . . 23 22 8 8 33 48 11 . 6 4 Hits 232 | . 34 . . . 17 32 5 9 13 82 25 . 6 9 Melee 1 | . . . . . . . . 1 . . . . . . Projectile 231 | . 34 . . . 17 32 5 8 13 82 25 . 6 9 AOE 1 | . . . . . . . . . 1 . . . . . Critical Strikes 6 | . . . . . . 3 1 1 . 1 . . . . Damage Taken 2990 | . 368 . . . 208 438 70 225 166 1164 189 . . 162 Core 1260 | . 109 . . . 72 133 14 81 18 546 156 . . 131 Absorbed by Shields 58 | . . . . . . . . . . 58 . . . . Regen/Repaired (Parts) 228 | . . . . . . 82 . . 146 . . . . . Core Remaining (%) 77 | 100 . . . 56 86 . . 67 . . . . . . Volleys Fired 62 | 10 37 . . . 15 . . . . . . . . . Largest 2 | 2 2 . . . 1 . . . . . . . . . Hottest 63 | 40 40 . . . 63 . . . . . . . . . Shots Fired 99 | 20 57 . . . 22 . . . . . . . . . Gun 99 | 20 57 . . . 22 . . . . . . . . . Cannon . | . . . . . . . . . . . . . . . Launcher . | . . . . . . . . . . . . . . . Special . | . . . . . . . . . . . . . . . Kinetic 77 | 20 57 . . . . . . . . . . . . . Thermal 22 | . . . . . 22 . . . . . . . . . Explosive . | . . . . . . . . . . . . . . . Electromagnetic . | . . . . . . . . . . . . . . . Robot Hit Streak 12 | 5 12 . . . 6 . . . . . . . . . Robot Miss Streak 3 | 1 3 . . . 3 . . . . . . . . . Penetration Max . | . . . . . . . . . . . . . . . Secondary Targets 1 | . 1 . . . . . . . . . . . . . Max Gunslinging Chain 1 | . 1 . . . . . . . . . . . . . Autonomous 7 | . . . . . 7 . . . . . . . . . Shots Hit Robots 151 | 15 61 2 . . 12 32 8 10 6 2 3 . . . Core Hits 38 | 2 17 1 . . 6 3 2 1 3 3 . . . . Critical Kills 1 | . . . . . . . . 1 . . . . . . Critical Parts Destroyed 15 | . . . . . . 8 3 3 1 . . . . . Critical Strikes 17 | . . . . . . 8 3 5 1 . . . . . Smash 17 | . . . . . . 8 3 5 1 . . . . . Melee Attacks 131 | . 31 2 . . 3 44 14 12 19 3 3 . . . Impact 95 | . . . . . . 44 14 12 19 3 3 . . . Slashing 36 | . 31 2 . . 3 . . . . . . . . . Piercing . | . . . . . . . . . . . . . . . Sneak Attacks 20 | . 7 2 . . 2 7 1 . 1 . . . . . Combat Hostiles 1 | . . . . . . . 1 . . . . . . . Follow-up Attacks 11 | . . . . . . 6 3 1 1 . . . . . Damage Inflicted 5693 | 193 1148 93 . . 256 2125 619 635 408 97 119 . . . Guns 835 | 193 461 . . . 181 . . . . . . . . . Cannons . | . . . . . . . . . . . . . . . Explosions . | . . . . . . . . . . . . . . . Melee 4852 | . 687 93 . . 75 2125 619 635 408 91 119 . . . Ramming 6 | . . . . . . . . . . 6 . . . . Kinetic 654 | 193 461 . . . . . . . . . . . . . Thermal 181 | . . . . . 181 . . . . . . . . . Explosive . | . . . . . . . . . . . . . . . Electromagnetic . | . . . . . . . . . . . . . . . Impact 3997 | . . . . . . 2125 619 635 408 91 119 . . . Slashing 855 | . 687 93 . . 75 . . . . . . . . . Piercing . | . . . . . . . . . . . . . . . Highest Corruption 2 | . . . . . . 1 2 2 . . . . . . Average Corruption 1 | . . . . . . 1 1 2 . . . . . . Corruption Purged . | . . . . . . . . . . . . . . . Corruption Blocked . | . . . . . . . . . . . . . . . Effects 10 | . . . . . . 3 2 5 . . . . . . Message Errors 3 | . . . . . . 1 . 2 . . . . . . Matter Fused 2 | . . . . . . . 1 1 . . . . . . Heat Flow Errors 1 | . . . . . . . . 1 . . . . . . Energy Discharges 1 | . . . . . . 1 . . . . . . . . Data Loss (minor) 2 | . . . . . . 1 . 1 . . . . . . Alerts 1 | . . . . . . . 1 . . . . . . . Overload Shots . | . . . . . . . . . . . . . . . Overflow Damage 1799 | . 117 8 . . . 900 384 259 126 . 5 . . . Projectiles . | . . . . . . . . . . . . . . . Explosions . | . . . . . . . . . . . . . . . Melee 1799 | . 117 8 . . . 900 384 259 126 . 5 . . . Knockbacks 19 | . . . . . . 12 1 3 3 . . . . . Impact 19 | . . . . . . 12 1 3 3 . . . . . Kinetic . | . . . . . . . . . . . . . . . Secondary . | . . . . . . . . . . . . . . . Self-Inflicted Damage 3 | . . . . . . . . . . 3 . . . . Shots . | . . . . . . . . . . . . . . . Rammed 2 | . . . . . . . . . . 2 . . . . Targets Rammed 2 | . . . . . . . . . . 2 . . . . Kicked . | . . . . . . . . . . . . . . . Crushed . | . . . . . . . . . . . . . . . Highest Temperature 363 | . . . . . 363 10 . 269 3 6 . . . . Average Temperature 132 | . . . . . 151 4 . 123 3 4 . . . . Received Heat Transfer 516 | . 132 . . . 63 120 . 57 36 36 54 . . 18 Siege Activations . | . . . . . . . . . . . . . . . Martial Activations . | . . . . . . . . . . . . . . . Shielding Activations . | . . . . . . . . . . . . . . . Robots Disrupted . | . . . . . . . . . . . . . . . Combat Hostiles . | . . . . . . . . . . . . . . . Robots Corrupted 10 | . . . . . . 4 1 3 2 . . . . . Combat Hostiles 6 | . . . . . . 1 1 3 1 . . . . . Parts Fried 11 | . . . . . . 6 2 . 3 . . . . . Impact Corruptions 54 | . . . . . . 24 15 11 3 . 1 . . . Robots Melted . | . . . . . . . . . . . . . . . Combat Hostiles . | . . . . . . . . . . . . . . . Parts Melted . | . . . . . . . . . . . . . . . Heat Transferred 333 | . . . . . 333 . . . . . . . . . Parts Sabotaged . | . . . . . . . . . . . . . . . Parts Stolen . | . . . . . . . . . . . . . . . Parts Stripped . | . . . . . . . . . . . . . . . Power Chain Reactions . | . . . . . . . . . . . . . . . Alert | -11 -10 -10 -10 -9 -8 -7 -7 -7 -6 -6 -6 -6 -6 -5 ------- Run | Yrd Mat Min Exi Min Mat Fac Low Low Fac Gar Fac Low Zio Pro Maximum Alert Level 1 | . . . . . . 1 . . . . . . . . Low Security (%) 99 | 100 100 100 . 100 100 98 . . 100 100 100 . . . Level 1 . | . . . . . . 1 . . . . . . . . Level 2 . | . . . . . . . . . . . . . . . Level 3 . | . . . . . . . . . . . . . . . Level 4 . | . . . . . . . . . . . . . . . Level 5 . | . . . . . . . . . . . . . . . High Security . | . . . . . . . . . . . . . . . Max Security . | . . . . . . . . . . . . . . . Peak Influence 200 | 5 92 25 . . 97 200 . . 146 105 44 . . . Initial 124 | . . 25 . . . 35 . . 124 79 39 . . . Average 43 | . 23 3 . . 21 98 . . 99 69 36 . . . Influence Increases 1611 | 5 239 5 . . 174 365 95 300 227 126 15 . . 60 Destroy 0b10 Robot/C 380 | . 140 . . . 20 60 60 20 60 20 . . . . Destroy 0b10 Robot/NC 120 | 5 35 5 . . 10 35 10 10 10 . . . . . Destroy Leader 94 | . 34 . . . 12 24 10 . 14 . . . . . Successful Hack 145 | . . . . . 7 49 . . 63 26 . . . . Disable Machine 30 | . . . . . . 30 . . . . . . . . Destroy Structure 17 | . . . . . 5 2 . . 5 5 . . . . Partial Spotted 120 | . . . . . 45 45 . . 15 . 15 . . . Lose Combat Pursuer 705 | . 30 . . . 75 120 15 270 60 75 . . . 60 Influence Decreases 1611 | 5 174 70 . . 97 250 202 187 312 164 56 14 20 60 Entered New Map 349 | . . 40 . . . 42 72 17 74 34 36 14 20 . Time Decay 1052 | 5 154 30 . . 87 198 110 150 238 . 20 . . 60 Lost Part 200 | . 20 . . . 10 10 10 20 . 130 . . . . Lost Ally 10 | . . . . . . . 10 . . . . . . . Squads Dispatched 11 | . 3 . . . 2 3 . 1 1 . . . . 1 Investigation 1 | . . . . . . 1 . . . . . . . . Extermination 2 | . . . . . . 1 . . 1 . . . . . Reinforcement 6 | . 3 . . . 2 1 . . . . . . . . Assault 2 | . . . . . . . . 1 . . . . . 1 Garrison . | . . . . . . . . . . . . . . . Intercept . | . . . . . . . . . . . . . . . Searches Triggered . | . . . . . . . . . . . . . . . Construction Impeded . | . . . . . . . . . . . . . . . Haulers Reinforced 1 | . . . . . . 1 . . . . . . . . Active Scanning Responses . | . . . . . . . . . . . . . . . Cargo Convoy Interrupts 1 | . . . . . . . . . 1 . . . . . Stealth | -11 -10 -10 -10 -9 -8 -7 -7 -7 -6 -6 -6 -6 -6 -5 --------- Run | Yrd Mat Min Exi Min Mat Fac Low Low Fac Gar Fac Low Zio Pro Distress Signals 6 | . 3 . . . 2 . . . . . . . . 1 Communications Jammed . | . . . . . . . . . . . . . . . Distress Signals . | . . . . . . . . . . . . . . . Times Spotted 144 | . 21 . . . 17 18 7 22 25 13 4 . 2 15 Peak Tracking Total 16 | . 3 . . . 6 6 3 11 16 14 4 . 2 8 Tactical Retreats 27 | . 1 . . . 2 5 2 10 4 2 . . . 1 Traps | -11 -10 -10 -10 -9 -8 -7 -7 -7 -6 -6 -6 -6 -6 -5 ------- Run | Yrd Mat Min Exi Min Mat Fac Low Low Fac Gar Fac Low Zio Pro Traps Triggered 4 | . 1 . . . . . . . 1 2 . . . . Indirectly . | . . . . . . . . . . . . . . . Trap Hack Attempts . | . . . . . . . . . . . . . . . Triggered . | . . . . . . . . . . . . . . . Disarmed . | . . . . . . . . . . . . . . . Reprogrammed . | . . . . . . . . . . . . . . . Reused . | . . . . . . . . . . . . . . . Traps Extracted . | . . . . . . . . . . . . . . . Installed . | . . . . . . . . . . . . . . . Triggered . | . . . . . . . . . . . . . . . Machines | -11 -10 -10 -10 -9 -8 -7 -7 -7 -6 -6 -6 -6 -6 -5 ---------- Run | Yrd Mat Min Exi Min Mat Fac Low Low Fac Gar Fac Low Zio Pro Machines Disabled 4 | . . . . . . 2 1 1 . . . . . . Max in Single Turn 1 | . . . . . . 1 1 1 . . . . . . Garrison Access 1 | . . . . . . . . . 1 . . . . . Machines Repaired . | . . . . . . . . . . . . . . . Machines Dismantled . | . . . . . . . . . . . . . . . Machines Sabotaged . | . . . . . . . . . . . . . . . Overloaded Fab Kills . | . . . . . . . . . . . . . . . Hacking | -11 -10 -10 -10 -9 -8 -7 -7 -7 -6 -6 -6 -6 -6 -5 --------- Run | Yrd Mat Min Exi Min Mat Fac Low Low Fac Gar Fac Low Zio Pro Machines Accessed 30 | . 2 . 5 . 4 10 . . 8 1 . . . . Terminals 16 | . 2 . . . 2 6 . . 5 1 . . . . Fabricators 1 | . . . . . . 1 . . . . . . . . Repair Stations 3 | . . . . . . 2 . . 1 . . . . . Recycling Units 1 | . . . . . 1 . . . . . . . . . Scanalyzers 2 | . . . . . 1 1 . . . . . . . . Garrison Access 2 | . . . . . . . . . 2 . . . . . Total Hacks 117 | . 7 . 50 . 8 27 . . 22 3 . . . . Successful 91 | . 2 . 50 . 5 18 . . 14 2 . . . . Failed 25 | . 5 . . . 2 9 . . 8 1 . . . . Catastrophic 2 | . . . . . . . . . 2 . . . . . Database Lockouts 1 | . . . . . 1 . . . . . . . . . Manual 12 | . . . 1 . 4 . 1 . 4 2 . . . . Terminals 47 | . 7 . . . 4 19 . . 14 3 . . . . Fabricators 1 | . . . . . . 1 . . . . . . . . Repair Stations 11 | . . . . . . 5 . . 6 . . . . . Recycling Units 1 | . . . . . 1 . . . . . . . . . Scanalyzers 5 | . . . . . 3 2 . . . . . . . . Garrison Access 2 | . . . . . . . . . 2 . . . . . Terminal Hacks 75 | . 2 . 50 . 2 12 . . 7 2 . . . . Record 50 | . . . 49 . . 1 . . . . . . . . Open DSF 2 | . . . . . . 1 . . 1 . . . . . Branch Access Points 1 | . 1 . . . . . . . . . . . . . Emergency Access Points 2 | . . . . . . 1 . . . 1 . . . . Machine Index 1 | . . . . . . 1 . . . . . . . . Terminal Index 1 | . . . . . 1 . . . . . . . . . Repair Station Index 1 | . . . . . . 1 . . . . . . . . Scanalyzer Index 2 | . . . . . . 1 . . 1 . . . . . Alert Level 2 | . . . . . . 1 . . 1 . . . . . Security Status 1 | . . . . . . 1 . . . . . . . . Transport Status 1 | . . . . . . 1 . . . . . . . . Investigation Status 1 | . . . . . . 1 . . . . . . . . Recall Investigation 1 | . . . . . . 1 . . . . . . . . Hauler Manifests 3 | . . . . . 1 1 . . 1 . . . . . Registered Components 1 | . . . . . . . . . 1 . . . . . Zone Layout 3 | . 1 . . . . . . . 2 . . . . . Garrison Registry 1 | . . . . . . . . . . 1 . . . . Proto ID Catalog 1 | . . . 1 . . . . . . . . . . . Fabricator Hacks 1 | . . . . . . 1 . . . . . . . . Network Status 1 | . . . . . . 1 . . . . . . . . Repair Station Hacks 9 | . . . . . . 4 . . 5 . . . . . Scan Component 5 | . . . . . . 2 . . 3 . . . . . Repair 4 | . . . . . . 2 . . 2 . . . . . Recycling Unit Hacks . | . . . . . . . . . . . . . . . Scanalyzer 3 | . . . . . 2 1 . . . . . . . . Retrieve Study 3 | . . . . . 2 1 . . . . . . . . Garrison Access Hacks 2 | . . . . . . . . . 2 . . . . . Unlock Access 1 | . . . . . . . . . 1 . . . . . Seal Access 1 | . . . . . . . . . 1 . . . . . Unauthorized Hacks 1 | . . . . . 1 . . . . . . . . . Terminals . | . . . . . . . . . . . . . . . Fabricators . | . . . . . . . . . . . . . . . Repair Stations . | . . . . . . . . . . . . . . . Recycling Units 1 | . . . . . 1 . . . . . . . . . Monitor 1 | . . . . . 1 . . . . . . . . . Scanalyzers . | . . . . . . . . . . . . . . . Garrison Access . | . . . . . . . . . . . . . . . Data Cores Recovered 1 | . . . . . . 1 . . . . . . . . Used . | . . . . . . . . . . . . . . . Hacking Detections 20 | . 2 . . . 3 8 . . 6 1 . . . . Full Trace Events 2 | . 1 . . . . 1 . . . . . . . . Feedback Events . | . . . . . . . . . . . . . . . Feedback Blocked . | . . . . . . . . . . . . . . . Robot Schematics Acquired . | . . . . . . . . . . . . . . . Robots Built . | . . . . . . . . . . . . . . . Authchips . | . . . . . . . . . . . . . . . Time . | . . . . . . . . . . . . . . . Total Robot Build Rating . | . . . . . . . . . . . . . . . Part Schematics Acquired . | . . . . . . . . . . . . . . . Parts Built . | . . . . . . . . . . . . . . . Authchips . | . . . . . . . . . . . . . . . Time . | . . . . . . . . . . . . . . . Total Part Build Rating . | . . . . . . . . . . . . . . . Part Studies Acquired 3 | . . . . . 2 1 . . . . . . . . Parts Repaired 4 | . . . . . . 2 . . 2 . . . . . Time 159 | . . . . . . 60 . . 99 . . . . . Parts Recycled . | . . . . . . . . . . . . . . . Recycled Matter . | . . . . . . . . . . . . . . . Retrieved Matter . | . . . . . . . . . . . . . . . Retrieved Components . | . . . . . . . . . . . . . . . Parts Scanalyzed . | . . . . . . . . . . . . . . . Part Schematics Acquired . | . . . . . . . . . . . . . . . Parts Damaged . | . . . . . . . . . . . . . . . Bothacking | -11 -10 -10 -10 -9 -8 -7 -7 -7 -6 -6 -6 -6 -6 -5 ------------ Run | Yrd Mat Min Exi Min Mat Fac Low Low Fac Gar Fac Low Zio Pro Used RIF Installer 1 | . . . . . . . . . . 1 . . . . Robots Hacked . | . . . . . . . . . . . . . . . Non-combat . | . . . . . . . . . . . . . . . Combat . | . . . . . . . . . . . . . . . Robot Hacks Applied . | . . . . . . . . . . . . . . . Relay Couplers Released . | . . . . . . . . . . . . . . . Fabnet Peak Effective % . | . . . . . . . . . . . . . . . Robots Rewired . | . . . . . . . . . . . . . . . Allies Hacked . | . . . . . . . . . . . . . . . Hacks Repelled . | . . . . . . . . . . . . . . . Allies | -11 -10 -10 -10 -9 -8 -7 -7 -7 -6 -6 -6 -6 -6 -5 -------- Run | Yrd Mat Min Exi Min Mat Fac Low Low Fac Gar Fac Low Zio Pro Total Allies 3 | . . . . 3 . . . . . . . . . . Largest Group 3 | . . . . 3 . . . . . . . . . . Highest-Rated Group 40 | . . . . 40 . . . . . . . . . . Highest-Rated Ally 16 | . . . . 16 . . . . . . . . . . Total Orders 4 | . . . . . 2 1 1 . . . . . . . EXPLORE 3 | . . . . . 1 1 1 . . . . . . . RETURN 1 | . . . . . 1 . . . . . . . . . Ally Attacks 3 | . . . . 3 . . . . . . . . . . Total Damage 14 | . . . . 14 . . . . . . . . . . Kills . | . . . . . . . . . . . . . . . Allies Corrupted . | . . . . . . . . . . . . . . . Allies Melted . | . . . . . . . . . . . . . . . Intel | -11 -10 -10 -10 -9 -8 -7 -7 -7 -6 -6 -6 -6 -6 -5 ------- Run | Yrd Mat Min Exi Min Mat Fac Low Low Fac Gar Fac Low Zio Pro Active Infowar (turns) 1635 | . . . . . . 53 189 311 513 93 48 3 51 374 Machine Analysis 1635 | . . . . . . 53 189 311 513 93 48 3 51 374 Robot Analysis Total . | . . . . . . . . . . . . . . . Derelict Logs Recovered 11 | . . 3 . 2 . . 2 3 . . . . . 1 Drone Launches 3 | . . . . . 1 1 1 . . . . . . . Drone Recoveries 2 | . . . . . 1 1 . . . . . . . . Exploration | -11 -10 -10 -10 -9 -8 -7 -7 -7 -6 -6 -6 -6 -6 -5 ------------- Run | Yrd Mat Min Exi Min Mat Fac Low Low Fac Gar Fac Low Zio Pro Turns Passed 4044 | 209 760 243 182 289 319 413 235 311 513 93 48 3 51 375 Spaces Moved 5739 | 107 471 415 299 257 616 802 529 896 657 185 77 3 102 323 Core 555 | 2 . . . . . . 3 . . 46 77 3 102 322 Treads 371 | 105 265 . . . . . . . . . . . . 1 Legs . | . . . . . . . . . . . . . . . Wheels . | . . . . . . . . . . . . . . . Hover 1423 | . 206 415 299 257 246 . . . . . . . . . Flight 3390 | . . . . . 370 802 526 896 657 139 . . . . Fastest Speed 23 | 50 56 56 56 56 26 26 26 26 25 23 50 50 50 50 Average Speed 45 | 157 114 56 56 56 37 26 28 30 27 34 50 50 50 50 Slowest Speed 200 | 160 160 56 56 56 104 29 200 32 32 50 50 50 50 160 Overloaded Moves 70 | . . . . . . . . . . 70 . . . . Propulsion Burnouts . | . . . . . . . . . . . . . . . Robots Hopped 17 | . . . . . 6 3 . 3 4 1 . . . . Potential Cave-ins 4 | . . . . . . 2 . . 2 . . . . . Cave-ins Triggered . | . . . . . . . . . . . . . . . Exploration Rate (%) 41 | 6 65 79 66 54 47 30 91 82 18 30 4 1 13 33 Regions Visited 14 Branch Regions 8 Pre-discovered Areas 2 | . . . 1 1 . . . . . . . . . . Known Exits Taken 7 | . 1 . . . . 1 1 1 1 . 1 . 1 . Unknown Exits Taken 6 | 1 . 1 1 1 1 . . . . . . 1 . . Scrap Searched 18 | . . 3 . 1 . . 4 7 . . . . . 3 Spaces Dug 12 | . . . . . . 4 . 1 7 . . . . . Terrain Destroyed 16 | . . . . . 4 4 . 1 7 . . . . . Melee 12 | . . . . . . 4 . 1 7 . . . . . Projectile 4 | . . . . . 4 . . . . . . . . . AOE . | . . . . . . . . . . . . . . . Terrain Rammed . | . . . . . . . . . . . . . . . Walls Destroyed . | . . . . . . . . . . . . . . . Machines Disabled . | . . . . . . . . . . . . . . . Actions | -11 -10 -10 -10 -9 -8 -7 -7 -7 -6 -6 -6 -6 -6 -5 --------- Run | Yrd Mat Min Exi Min Mat Fac Low Low Fac Gar Fac Low Zio Pro Total 6828 | 124 575 422 315 401 680 929 590 911 954 206 80 4 101 536 Wait 771 | . 5 . 10 145 22 75 39 6 255 1 . 2 . 211 Move 5693 | 106 470 414 298 256 603 795 528 890 649 182 76 2 101 323 Hop 16 | . . . . . 6 3 . 2 4 1 . . . . Pick Up 42 | 2 13 3 3 . 6 6 3 . 4 1 . . . 1 Fast Attach 42 | 6 5 . . . 6 4 2 1 16 1 . . . 1 Attach 15 | . 2 . . . 6 4 1 . . 1 1 . . . Detach 2 | . 1 . . . 1 . . . . . . . . . Swap 10 | . 2 . . . 2 2 3 . 1 . . . . . Drop 49 | . 9 3 4 . 10 6 5 1 10 1 . . . . Fire 62 | 10 37 . . . 15 . . . . . . . . . Melee 111 | . 31 2 . . 3 34 9 11 15 3 3 . . . Ram 2 | . . . . . . . . . . 2 . . . . Kick . | . . . . . . . . . . . . . . . Crush . | . . . . . . . . . . . . . . . Escape Stasis 13 | . . . . . . . . . . 13 . . . . Rewire . | . . . . . . . . . . . . . . . Trap . | . . . . . . . . . . . . . . . Miscellaneous . | . . . . . . . . . . . . . . . Route ------- -11/Scrapyard -10/Materials (discovered 3 exits: [*Mat x2] / *Min) -10/Mines (discovered 3 exits: [*Mat x2] / *Exi) -10/Exiles (discovered 2 exits: [*Min x2]) -9/Mines (discovered 2 exits: *Mat x2) -8/Materials (discovered 2 exits: *Fac x2) -7/Factory (discovered 2 exits: *Sto / *Low) -7/Lower Caves -7/Lower Caves -6/Factory (discovered 3 exits: Fac / Low / Gar) -6/Garrison (discovered 3 exits: *Fac x3) -6/Factory (discovered 2 exits: *Low x2) -6/Lower Caves -6/Zion -5/Proximity Caves History --------- Turn | Location | Event 12 | -11/Scrapyard | Discovered new exit (range 15) 210 | -11/Scrapyard | Entered Materials 211 | -10/Materials | Met a group of wandering Federalists 301 | -10/Materials | Build established: Mutant 342 | -10/Materials | Lost 3 allies 402 | -10/Materials | Discovered new exit (range 15) 622 | -10/Materials | Identified exit to Mines 809 | -10/Materials | Discovered new exit (range 15) 970 | -10/Materials | Entered Mines 1001 | -10/Mines | Discovered new exit (range 11) 1034 | -10/Mines | Found a hidden stash of uninstalled traps 1085 | -10/Mines | Discovered new exit (range 13) 1086 | -10/Mines | Learned Materials garrison access intel 1183 | -10/Mines | Received a Rocket Launcher from a helpful Derelict 1209 | -10/Mines | Deemed a non-threat by the Exiles lab entrance 1210 | -10/Mines | Discovered new exit (range 5) 1213 | -10/Mines | Entered Exiles 1225 | -10/Exiles | Discovered new exit (range 14) 1242 | -10/Exiles | Build established: Scavenger-Mutant 1243 | -10/Exiles | Met 8R-AWN 1252 | -10/Exiles | Met EX-HEX 1268 | -10/Exiles | Met EX-BIN 1275 | -10/Exiles | Aligned with FarCom system 1275 | -10/Exiles | Given EX-Vault access code 1298 | -10/Exiles | Opened EX-Vault 1302 | -10/Exiles | Found AWS/Thermal 1304 | -10/Exiles | Found Supersonic Drone Bay 1307 | -10/Exiles | Found Skeleton Box 1320 | -10/Exiles | Warned to stay clear of 0b10 Research branches 1326 | -10/Exiles | Exiles lab attacked by MAIN.C 1354 | -10/Exiles | Learned location of Zion (-6) 1379 | -10/Exiles | Discovered new exit (range 14) 1395 | -10/Exiles | Stole three prototypes: Skeleton Box, Supersonic Drone Bay, AWS/Thermal 1395 | -10/Exiles | Entered Mines 1398 | -9/Mines | Assisted by bots powering up and referring to "LRC-V3" 1419 | -9/Mines | Discovered new exit (range 5) 1478 | -9/Mines | Learned Materials trap positions 1584 | -9/Mines | Assembled infested the area 1637 | -9/Mines | Lost 4 allies 1679 | -9/Mines | Discovered new exit (range 9) 1684 | -9/Mines | Entered Materials 1684 | -8/Materials | Evolved 4 slots: Propulsion x2, Utility x2 1685 | -8/Materials | Loaded intel: 14 trap records 1686 | -8/Materials | Loaded intel: 1 garrison access location 1870 | -8/Materials | Central database locked down 1953 | -8/Materials | Discovered new exit (range 16) 1992 | -8/Materials | Discovered new exit (range 16) 2003 | -8/Materials | Entered Factory 2003 | -7/Factory | Evolved 2 slots: Utility x2 2004 | -7/Factory | Identified exit to Storage 2005 | -7/Factory | FarCom data flow suspended 2081 | -7/Factory | Discovered new exit (range 6) 2128 | -7/Factory | Repaired Cesium-ion Thruster+ 2135 | -7/Factory | Build established: Hacker-Sprinter 2395 | -7/Factory | Repaired Power Maul+ 2416 | -7/Factory | Identified exit to Lower Caves 2416 | -7/Factory | Entered Lower Caves 2459 | -7/Lower Caves | Encountered a Warlord checkpoint 2465 | -7/Lower Caves | Learned Factory garrison access intel 2576 | -7/Lower Caves | Identified exit to Lower Caves 2594 | -7/Lower Caves | Acquired the password to a Derelict Tinkerer's latest research 2596 | -7/Lower Caves | Found Prototype Special Weapon 2596 | -7/Lower Caves | Identified Molecular Deconstructor 2651 | -7/Lower Caves | Entered another Lower Caves area 2692 | -7/Lower Caves | Learned 4 Factory zone layouts 2768 | -7/Lower Caves | Learned Factory garrison access intel 2777 | -7/Lower Caves | Encountered a Warlord checkpoint 2786 | -7/Lower Caves | Spotted B-75 Beast 2836 | -7/Lower Caves | Learned Factory terminal intel 2868 | -7/Lower Caves | Attacked by a delusional Derelict stockpiling Unaware 2939 | -7/Lower Caves | Attracted the attention of an 0b10 outpost 2951 | -7/Lower Caves | Discovered new exit (range 12) 2962 | -7/Lower Caves | Identified exit to Factory 2962 | -7/Lower Caves | Entered Factory 2962 | -6/Factory | Evolved 2 slots: Propulsion x1, Utility x1 2963 | -6/Factory | Identified exit to Factory 2963 | -6/Factory | Identified exit to Lower Caves 2964 | -6/Factory | Loaded intel: 26 terminal locations 2965 | -6/Factory | Loaded intel: 4 garrison access locations 3111 | -6/Factory | Repaired Broken Power Maul+ 3151 | -6/Factory | Repaired Actuator Array 3474 | -6/Factory | Cargo convoy interrupted 3475 | -6/Factory | Identified exit to Garrison 3475 | -6/Factory | Entered Garrison 3481 | -6/Garrison | Triggered checkpoint 3499 | -6/Garrison | Spotted B-75 Beast 3503 | -6/Garrison | Triggered checkpoint 3503 | -6/Garrison | Triggered checkpoint 3504 | -6/Garrison | Discovered new exit (range 53) 3504 | -6/Garrison | Discovered new exit (range 47) 3504 | -6/Garrison | Discovered new exit (range 30) 3523 | -6/Garrison | Installed Relay Interface Framework 3550 | -6/Garrison | Core integrity fell below 50% 3567 | -6/Garrison | Identified exit to Factory 3568 | -6/Garrison | Entered Factory 3569 | -6/Factory | Loaded intel: 4 garrison access locations 3580 | -6/Factory | Lost 13 parts (1p7n4u1w) 3585 | -6/Factory | Discovered exit to Lower Caves (range 3) 3606 | -6/Factory | Discovered exit to Lower Caves (range 4) 3607 | -6/Factory | Core integrity fell below 20% 3616 | -6/Factory | Entered Lower Caves 3617 | -6/Lower Caves | A Derelict revealed a hidden shortcut to a safe place 3619 | -6/Lower Caves | Entered Zion 3629 | -6/Zion | Given A8's code to call for help 3644 | -6/Zion | RIF detected upon attempting to enter Zion 3644 | -6/Zion | Attacked by Zionites 3644 | -6/Zion | Spotted 70-9ZE(B) 3644 | -6/Zion | Spotted PG-APR(B) 3666 | -6/Zion | Discovered new exit (range 9) 3670 | -6/Zion | Identified exit to Proximity Caves 3670 | -6/Zion | Entered Proximity Caves 3689 | -5/Proximity Caves | Learned location of 1 exit from Factory 3836 | -5/Proximity Caves | Build established: Mutant 3869 | -5/Proximity Caves | Received a Behemoth hack from an annoying Tinkerer 4037 | -5/Proximity Caves | Attracted the attention of an 0b10 outpost 4045 | -5/Proximity Caves | Destroyed by S-27 Virus with Autogun Last Messages --------------- 04017_ Found Hcp. Storage Unit. 04017_ Found Imp. Launcher Guidance Computer. 04017_ Found 62 Matter. 04018_ Acquired 10 matter. 04022_ Searching scrap... 04022_ Found Hardlight Generator. 04022_ Found Imp. Weapon Shielding. 04022_ Found 37 Matter. 04026_ Searching scrap... 04026_ Found Proton Missile Launcher. 04026_ Found Hpw. Tractor Beam. 04026_ Found Mak. Power Source. 04026_ Found 61 Matter. 04027_ Acquired Mak. Power Source. 04036_ Penetrated by Slug. 04037_ Y-72 Warden: "DETECTED UNIDENTIFIED DERELICT." 04041_ Y-72 Warden: "REQUESTING BACKUP." 04044_ Acquired Med. Treads. 04044_ Machine Analyzer destroyed. Map ----- +----------------------------------------------------+ | ##?## ## ### ##???????????????? | | #### ## ## #?## #????????????????? | | # ## " "" ## #### #????????????????? | | # """" "" "## ## #????????????????? | | #"" """ "# ## #????????????????? | | ## ## "" " ## #????????????????? | | #### ##" """"" #????????????????? | | ##??# ##" " #????????????????? | | ##???# #######????????????????? | | ##????## #??????????????????????? | | ???????#### ### #??????????????????????? | | ??????????# ### #??????????????????????? | | ?????????# ##?## #??????????????????????? | | ?????????? # #??## ##??????????????????????? | | ?????????? # #### #####???????????????????? | | ?????????? # ## #?##????????????????? | | ??????????#### # ## #?? #####???????????? | | ?????????????# ## ##### #?? # ##????????? ? | | ?????????????# # ##??# #??# ?##### ? | | ?????????###?# #??# #### ## ? | | ?????????# ### #??# # ????? | | ?????????# ]## #### #? #???????? | | ?????????#% #???# ##### ## #?????????? | | ????????##! ##???# !! # #?????????? | | ????????# ###### % #????????? | | ????????##### !! @ ##### ???? | | ????????????## % s ##??? #??? | | ?????????????# ## sss #???#### ##### #??? | | ?????????????# ##### ### #???????## ##?????????? | | ?????????????###???# #?###????????? #??????????? | | ???????????????????# #????????????? #??????????? | | ???????????????????# #?????????????? #??????????? | | ???????????????????# #?????????????? #??????????? | | ???????????????????# #?????????????? #??????????? | | ???????????### ##### #??????????????? ??????????? | | ??????????# " #??????????????????????????? | | ??????????# #######??????????????????????????? | | ?????????????????????????????????????????????????? | | ?????????????????????????????????????????????????? | | ?????????????????????????????????????????????????? | | ?????????????????????????????????????????????????? | | ?????????????????????????????????????????????????? | | ?????????????????????????????????????????????????? | | ?????????????????????????????????????????????????? | | ?????????????????????????????????????????????????? | | ?????????????????????????????????????????????????? | | ?????????????????????????????????????????????????? | | ?????????????????????????????????????????????????? | | ?????????????????????????????????????????????????? | | ?????????????????????????????????????????????????? | +----------------------------------------------------+ Best States ------------- Heat Dissipation 45 Energy Generation 18 Energy Capacity 290 Matter Stores 300 Matter Capacity 300 Sight Range 16 Terrain Scan Density 10 Melee Speed Boost 20 Evasion (%) 74 Targeting Accuracy 5 Melee Accuracy 6 Recoil Reduction 2 Offensive Hacking 30 Item Schematics ----------------- None Robot Schematics ------------------ None Fabricated ------------ Nothing Repaired ---------- Cesium-ion Thruster | 24% | -7/Factory Power Maul | 55% | -7/Factory Power Maul | 32% | -6/Factory | Broken Actuator Array | 48% | -6/Factory Studied --------- Cesium-ion Thruster | -8/Materials | Hacked Lgt. Nuclear Core | -8/Materials | Hacked Power Maul | -7/Factory | Hacked Alien Tech Used ----------------- None Achievements -------------- Drive-By Jackpot Challenges ------------ None Game ------ Seed OpticalScanTurretformer Manual? 0 Play Time 01:24:22 Cumulative 36.2 hours Start 2025.11.28 @ 13:26:51 End 2025.11.28 @ 14:50:25 Sessions 1 Manual Loads 0 Difficulty Rogue Special Mode None Game No. 36 Rogue 36 Adventurer 0 Explorer 0 Win Type - Total 0 Types 0/0/0/0/0/0/0/0/0/0 Lore% 17 Gallery% 33 Achievement% 23 Wizard Run 0 Options --------- Layout 1 ASCII 0 Keyboard 0 Movement Mouse Keybinds 0 Fullscreen 1 Font 24/Smallcaps Map View 50x35 Zoom Use 0% Tactical HUD 1 Map Filters NONE Filters NONE Steam 1 RUN: b5ae8f68-668d-4043-8d15-c4b7038ddee2